Cogmind - Beta 13 @@@ ROGUE MODE // 2024.08.06 @ 03:19:59 Player: gigi283 Result: Destroyed by N1-RJ8(R) with Subdweller Laser Performance ------------- Evolutions (0) 0 Regions Visited (2) 400 Robots Destroyed (27) 135 Value Destroyed (751) 751 Prototype IDs (0) 0 Alien Tech Used (0) 0 Bonus (0) 0 TOTAL SCORE: 1286 Bonus ------- None Cogmind --------- Core Integrity 0/250 Matter 267/300 Energy 74/100 System Corruption 0% Temperature Cool (6) Movement Rolling (110) Location -10/Subcaves Parts ------- > --- POWER (1) -------- Subdweller Power Source > --- PROPULSION (2) --- Subdweller Monowheel Subdweller Monowheel > --- UTILITY (2) ------ Disposable Heat Sink Large Storage Unit > --- WEAPON (2) ------- Subdweller Beam Cannon Subdweller Machine Gun > --- INVENTORY (15) --- Wheel Compact Wheel Compact Wheel Subdweller Monowheel Large Storage Unit Cobbler Unit Subdweller Shrapnel Launcher Peak State ------------ > --- POWER ------------ Subdweller Power Source > --- PROPULSION ------- Compact Wheel Subdweller Monowheel > --- UTILITY ---------- Large Storage Unit Makeshift Light Armor Plating > --- WEAPON ----------- Riot Gun Battle Rifle > --- INVENTORY -------- Wheel Compact Wheel Compact Wheel Disposable Heat Sink Large Storage Unit Cobbler Unit Particle Gun Battle Rifle Subdweller Machine Gun [Rating: 16] Favorites ----------- Power Ion Engine Engine Ion Engine Propulsion Compact Wheel Treads Light Treads Wheel Compact Wheel Utility Large Storage Unit Device Disposable Heat Sink Storage Large Storage Unit Protection Makeshift Light Armor Plating Weapon Particle Gun Energy Gun Particle Gun Energy Cannon Subdweller Beam Cannon Ballistic Gun Light Assault Rifle Launcher Grenade Launcher Build | -11 -10 -10 ------- Run | Yrd Mat Sub Slots Evolved . | . . . Power . | . . . Propulsion . | . . . Utility . | . . . Weapon . | . . . Parts Attached 35 | 6 9 20 Power 4 | 1 . 3 Engine 4 | 1 . 3 Core . | . . . Reactor . | . . . Propulsion 9 | 2 3 4 Treads 1 | 1 . . Leg . | . . . Wheel 8 | 1 3 4 Hover . | . . . Flight . | . . . Utility 5 | 1 2 2 Device 2 | . 1 1 Storage 2 | 1 1 . Processor . | . . . Hackware . | . . . Protection 1 | . . 1 Artifact . | . . . Weapon 17 | 2 4 11 Energy Gun 8 | 2 3 3 Energy Cannon 1 | . . 1 Ballistic Gun 6 | . 1 5 Ballistic Cannon . | . . . Launcher 2 | . . 2 Special Weapon . | . . . Impact Weapon . | . . . Slashing Weapon . | . . . Piercing Weapon . | . . . Special Melee Weapon . | . . . Unidentified Prototypes . | . . . Parts Lost 12 | . . 12 Power 2 | . . 2 Propulsion 3 | . . 3 Utility 1 | . . 1 Weapon 6 | . . 6 Highest Loss Streak 4 | . . 4 To Critical Strikes . | . . . Average Slot Usage (%) 97 | . 96 97 Engine 14 | . 14 14 Treads 1 | . 5 . Wheel 25 | . 22 27 Device 8 | . 10 7 Storage 14 | . 14 14 Protection 3 | . . 4 Energy Gun 9 | . 18 4 Ballistic Gun 14 | . 9 16 Launcher 4 | . . 6 Naked Turns . | . . . Heaviest Build 35 | 14 34 35 Greatest Support 40 | 16 32 40 Greatest Overweight (x) 2 | . 2 2 Average Overweight (x) . | . . . Largest Inventory Capacity 15 | 8 15 15 Average Capacity 14 | 7 14 15 Most Carried 12 | 4 8 12 Average Carried 8 | 2 6 9 Final Capacity 15 | 8 15 15 Final Carried 8 | 4 8 8 Class Distribution -------------------- 69% | Mutant 30% | Scavenger-Mutant Dominant Class ---------------- Mutant | -10/Materials Mutant | -10/Subcaves Resources | -11 -10 -10 ----------- Run | Yrd Mat Sub Matter Collected 751 | 200 120 431 Remotely . | . . . Salvage Created 897 | . 345 552 Parts 63 | . 22 41 Haulers Intercepted 1 | . 1 . Recyclers Shooed . | . . . Parts Field Recycled . | . . . Retrieved Matter . | . . . Parts Self-Destructed 13 | . . 13 Prevented . | . . . Kills | -11 -10 -10 ------- Run | Yrd Mat Sub Combat Hostiles Destroyed 25 | . 8 17 Guns 21 | . 8 13 AOE 4 | . . 4 Classes Destroyed 5 | . 4 1 Hauler 1 | . 1 . Recycler 1 | . 1 . Swarmer 8 | . 3 5 Grunt 5 | . 5 . Subdweller 12 | . . 12 Best Kill Streak 4 | . 4 3 Combat Bots Only 4 | . 4 3 Max Kills in Single Turn 2 | . 1 2 Gunslinging . | . . . Exploded 2 | . . 2 Melee . | . . . Uniques/NPCs Destroyed . | . . . Combat | -11 -10 -10 -------- Run | Yrd Mat Sub Hostile Shots Fired 125 | . 36 89 Missed 33 | . 10 23 Damage Taken 1741 | . 310 1431 Core 256 | . 66 190 Absorbed by Shields . | . . . Core Remaining (%) 100 | 100 . . Volleys Fired 95 | . 28 67 Largest 2 | . 2 2 Hottest 115 | . 115 110 Shots Fired 156 | . 52 104 Gun 141 | . 52 89 Cannon 1 | . . 1 Launcher 14 | . . 14 Special . | . . . Kinetic 65 | . 1 64 Thermal 65 | . 51 14 Explosive 14 | . . 14 Electromagnetic 12 | . . 12 Robot Hit Streak 14 | . 14 10 Robot Miss Streak 3 | . 3 3 Penetration Max . | . . . Secondary Targets 2 | . 2 . Max Gunslinging Chain 1 | . 1 . Shots Hit Robots 89 | . 36 53 Core Hits 47 | . 18 29 Critical Kills . | . . . Critical Parts Destroyed . | . . . Critical Strikes 3 | . 3 . Burn 3 | . 3 . Melee Attacks . | . . . Impact . | . . . Slashing . | . . . Piercing . | . . . Sneak Attacks . | . . . Combat Hostiles . | . . . Follow-up Attacks . | . . . Damage Inflicted 1718 | . 491 1227 Guns 1375 | . 491 884 Cannons . | . . . Explosions 343 | . . 343 Melee . | . . . Ramming . | . . . Kinetic 611 | . 8 603 Thermal 638 | . 483 155 Explosive 343 | . . 343 Electromagnetic 126 | . . 126 Impact . | . . . Slashing . | . . . Piercing . | . . . Highest Corruption . | . . . Average Corruption . | . . . Corruption Purged . | . . . Corruption Blocked . | . . . Overload Shots . | . . . Overflow Damage 7 | . . 7 Projectiles . | . . . Explosions 7 | . . 7 Melee . | . . . Knockbacks . | . . . Impact . | . . . Kinetic . | . . . Secondary . | . . . Self-Inflicted Damage 116 | . . 116 Shots 5 | . . 5 Rammed . | . . . Targets Rammed . | . . . Kicked . | . . . Crushed . | . . . Highest Temperature 451 | . 451 29 Average Temperature 143 | . 157 11 Received Heat Transfer 378 | . 162 216 Effects 3 | . 3 . Shutdowns 2 | . 2 . Energy Bleed 1 | . 1 . Siege Activations . | . . . Robots Corrupted . | . . . Combat Hostiles . | . . . Parts Fried . | . . . Impact Corruptions . | . . . Robots Melted . | . . . Combat Hostiles . | . . . Parts Melted 5 | . 4 1 Heat Transferred 1887 | . 1554 333 Parts Sabotaged . | . . . Parts Stolen . | . . . Parts Stripped . | . . . Power Chain Reactions . | . . . Alert | -11 -10 -10 ------- Run | Yrd Mat Sub Peak Influence 217 | . 217 . Initial . | . . . Average 58 | . 62 . Maximum Alert Level 1 | . 1 . Low Security (%) 86 | 100 85 . Level 1 13 | . 14 . Level 2 . | . . . Level 3 . | . . . Level 4 . | . . . Level 5 . | . . . High Security . | . . . Max Security . | . . . Squads Dispatched 1 | . 1 . Investigation 1 | . 1 . Extermination . | . . . Reinforcement . | . . . Assault . | . . . Garrison . | . . . Intercept . | . . . Searches Triggered . | . . . Construction Impeded . | . . . Haulers Reinforced . | . . . Active Scanning Responses . | . . . Cargo Convoy Interrupts . | . . . Stealth | -11 -10 -10 --------- Run | Yrd Mat Sub Distress Signals . | . . . Communications Jammed . | . . . Distress Signals . | . . . Times Spotted 29 | . 10 19 Peak Tracking Total 4 | . 4 3 Tactical Retreats 1 | . 1 . Traps | -11 -10 -10 ------- Run | Yrd Mat Sub Traps Triggered 3 | . 1 2 Indirectly . | . . . Trap Hack Attempts . | . . . Triggered . | . . . Disarmed . | . . . Reprogrammed . | . . . Reused . | . . . Traps Extracted . | . . . Installed . | . . . Triggered . | . . . Machines | -11 -10 -10 ---------- Run | Yrd Mat Sub Machines Disabled . | . . . Max in Single Turn . | . . . Machines Repaired . | . . . Machines Dismantled . | . . . Machines Sabotaged . | . . . Overloaded Fab Kills . | . . . Hacking | -11 -10 -10 --------- Run | Yrd Mat Sub Machines Accessed 1 | . 1 . Terminals 1 | . 1 . Fabricators . | . . . Repair Stations . | . . . Recycling Units . | . . . Scanalyzers . | . . . Garrison Access . | . . . Total Hacks 1 | . 1 . Successful 1 | . 1 . Failed . | . . . Catastrophic . | . . . Database Lockouts . | . . . Manual . | . . . Terminals 1 | . 1 . Fabricators . | . . . Repair Stations . | . . . Recycling Units . | . . . Scanalyzers . | . . . Garrison Access . | . . . Terminal Hacks 1 | . 1 . Alert Level 1 | . 1 . Fabricator Hacks . | . . . Repair Station Hacks . | . . . Recycling Unit Hacks . | . . . Scanalyzer . | . . . Garrison Access Hacks . | . . . Unauthorized Hacks . | . . . Terminals . | . . . Fabricators . | . . . Repair Stations . | . . . Recycling Units . | . . . Scanalyzers . | . . . Garrison Access . | . . . Data Cores Recovered . | . . . Used . | . . . Hacking Detections . | . . . Full Trace Events . | . . . Feedback Events . | . . . Feedback Blocked . | . . . Robot Schematics Acquired . | . . . Robots Built . | . . . Authchips . | . . . Time . | . . . Total Robot Build Rating . | . . . Part Schematics Acquired . | . . . Parts Built . | . . . Authchips . | . . . Time . | . . . Total Part Build Rating . | . . . Parts Repaired . | . . . Time . | . . . Parts Recycled . | . . . Recycled Matter . | . . . Retrieved Matter . | . . . Retrieved Components . | . . . Parts Scanalyzed . | . . . Part Schematics Acquired . | . . . Parts Damaged . | . . . Bothacking | -11 -10 -10 ------------ Run | Yrd Mat Sub Used RIF Installer . | . . . Robots Hacked . | . . . Non-combat . | . . . Combat . | . . . Robot Hacks Applied . | . . . Relay Couplers Released . | . . . Fabnet Peak Effective % . | . . . Robots Rewired . | . . . Allies Hacked . | . . . Hacks Repelled . | . . . Allies | -11 -10 -10 -------- Run | Yrd Mat Sub Total Allies . | . . . Largest Group . | . . . Highest-Rated Group . | . . . Highest-Rated Ally . | . . . Total Orders . | . . . Ally Attacks . | . . . Total Damage . | . . . Kills . | . . . Allies Corrupted . | . . . Allies Melted . | . . . Intel | -11 -10 -10 ------- Run | Yrd Mat Sub Robot Analysis Total . | . . . Derelict Logs Recovered 2 | . . 2 Drone Launches . | . . . Drone Recoveries . | . . . Exploration | -11 -10 -10 ------------- Run | Yrd Mat Sub Turns Passed 3481 | 77 1157 2247 Spaces Moved 2312 | 62 367 1883 Core 1 | 1 . . Treads 24 | . 24 . Legs . | . . . Wheels 2287 | 61 343 1883 Hover . | . . . Flight . | . . . Fastest Speed 50 | 50 100 100 Average Speed 108 | 99 114 108 Slowest Speed 160 | 100 160 130 Overloaded Moves . | . . . Propulsion Burnouts . | . . . Robots Hopped . | . . . Cave-ins Triggered . | . . . Exploration Rate (%) 52 | 3 67 87 Regions Visited 2 Branch Regions 1 Pre-discovered Areas 2 | . . 2 Known Exits Taken . | . . . Unknown Exits Taken 2 | 1 1 . Scrap Searched 5 | . . 5 Spaces Dug . | . . . Terrain Destroyed 88 | . . 88 Melee . | . . . Projectile . | . . . AOE 88 | . . 88 Terrain Rammed . | . . . Walls Destroyed . | . . . Machines Disabled . | . . . Actions | -11 -10 -10 --------- Run | Yrd Mat Sub Total 3126 | 77 1055 1994 Wait 629 | . 629 . Move 2310 | 61 366 1883 Hop . | . . . Pick Up 41 | 10 14 17 Fast Attach . | . . . Attach 27 | 6 5 16 Detach 1 | . . 1 Swap 8 | . 4 4 Drop 15 | . 9 6 Fire 95 | . 28 67 Melee . | . . . Ram . | . . . Kick . | . . . Crush . | . . . Escape Stasis . | . . . Rewire . | . . . Trap . | . . . Miscellaneous . | . . . Route ------- -11/Scrapyard -10/Materials (discovered 3 exits: [*Mat] / [*Min] / [*Sub]) -10/Subcaves (discovered 2 exits: [*Mat x2]) History --------- Turn | Location | Event 22 | -11/Scrapyard | Discovered new exit (range 14) 78 | -11/Scrapyard | Entered Materials 311 | -10/Materials | Build established: Mutant 367 | -10/Materials | Discovered new exit (range 4) 513 | -10/Materials | Discovered new exit (range 11) 1208 | -10/Materials | Discovered new exit (range 7) 1235 | -10/Materials | Entered Subcaves 1528 | -10/Subcaves | A swath of the cavern ceiling suddenly collapsed 1542 | -10/Subcaves | Learned location of Zion (-6) 1542 | -10/Subcaves | Met a Zionite searching for "candidates" 1582 | -10/Subcaves | Learned Materials emergency access door positions 1596 | -10/Subcaves | Discovered new exit (range 14) 1664 | -10/Subcaves | Shifting Twisted Machinery released Battle Rifle 1781 | -10/Subcaves | Shifting Twisted Machinery released Sub. Beam Cannon 2119 | -10/Subcaves | Lost 3 parts (1p1n1w) 2275 | -10/Subcaves | A swath of the cavern ceiling suddenly collapsed 2288 | -10/Subcaves | Core integrity fell below 50% 2431 | -10/Subcaves | Lost 4 parts (1p1n2w) 2441 | -10/Subcaves | Shifting Twisted Machinery released Sub. Shrapnel Launcher 2447 | -10/Subcaves | Shifting Twisted Machinery released Sub. Machine Gun 2494 | -10/Subcaves | Discovered new exit (range 11) 2533 | -10/Subcaves | Disturbed a concealed Subdweller 2605 | -10/Subcaves | Core integrity fell below 20% 2621 | -10/Subcaves | Learned location of Storage (-7) 2721 | -10/Subcaves | Build established: Scavenger-Mutant 3465 | -10/Subcaves | A Subdweller sparked back to life 3465 | -10/Subcaves | A Subdweller sparked back to life 3465 | -10/Subcaves | A Subdweller sparked back to life 3482 | -10/Subcaves | Destroyed by N1-RJ8(R) with Subdweller Laser Last Messages --------------- 02739_ Dropped Broken Sub. Power Source. 02748_ Dropped Particle Gun. 02998_ 7L-JVP(R) destroyed. 03004_ 3P-UCO(R) destroyed. 03021_ Acquired 35 matter. 03023_ Acquired Sub. Monowheel. 03026_ Dropped Sub. Monowheel. 03027_ Acquired Sub. Monowheel. 03029_ Acquired 10 matter. 03233_ Sub. Power Source shoots sparks and powers down. 03465_ E4-T8S(R) creaks and sparks as it begins to move. 03465_ N1-RJ8(R) creaks and sparks as it begins to move. 03465_ 9S-UTL(R) creaks and sparks as it begins to move. 03465_ Battle Rifle destroyed. 03473_ Sub. Machine Gun destroyed. 03475_ E4-T8S(R) destroyed. Map ----- +----------------------------------------------------+ | ????????????????## # ###???????????????? | | ?????????????????# ## ###?????????????????? | | ???????????????#### ##? ##??????????????????? | | ???????????????# #?? #??????????????????? | | ??????????????### ### ##??????????????????? | | ?????????????##"#" ##??????????????????? | | ?????????????# ! #??????????????????? | | ???????????#" ##%& #??????????????????? | | ???????????###?# ## ##??????????????????? | | ???????????????# ##?# #???????????????????? | | ???????????????# ##??? ##???????????????????? | | ???????????????## ##????? ????????????????????? | | ???????????????# ###???##???????????????????? | | ???????????????## ## ##? #????????????????????? | | ????????????????# # # #????????????????????? | | ????????????????## #????????????????????? | | ?????????????????# # ###????????????????????? | | ?????????????????## ##?#??????????????????????? | | ??????????????????# ##????????????????????????? | | ??????????????????# ##???????????????????????? | | ??????????????????# ##??????????????????????? | | ??????????????????# #??????????????????????? | | ??????????????????# ##?????????????????????? | | ????????????????### ##????????????????????? | | ???????????????## #????????????????????# | | ??????????????## @ ##???????????????????## | | ??????????????# #???????????????????## | | ??????????????# < ##??????????????????## | | ??????????????# < < R ##??????????????????# | | ??????????????#< %* #?????????########### | | ??????????????<& ##????????## # # ### | | ??????????????# R &# ###???#### | | ??????????????# < ## = ! ##### | | ??????????????###<# %= ## # # ## # | | ??????????????????# % ########### | | ???????????????#### % ##?????????? | | ???????????????# ## ####??????????? | | ??????????????## ### #????????????? | | ??????????????# ###[##????????????? | | ??????????????## ## ###??????????? | | ???????????????# ##?????????? | | ???????????????# #?????????? | | ???????????????# ########?????????? | | ???????????????# ###????????????????? | | ???????????????# #??????????????????? | | ???????????????# #??????????????????? | | ???????????????## #???######?????????? | | ????????????????## ### ###### ##????????? | | ????????????????## ### ### #????????? | | ???????????????## # ##### #????????? | +----------------------------------------------------+ Best States ------------- Heat Dissipation 35 Coolant Potential 50 Energy Generation 15 Energy Capacity 250 Matter Stores 300 Matter Capacity 300 Sight Range 16 Terrain Scan Density 10 Armor Coverage 100 Evasion (%) 40 Recoil Reduction 1 Item Schematics ----------------- None Robot Schematics ------------------ None Fabricated ------------ Nothing Alien Tech Used ----------------- None Achievements -------------- None Challenges ------------ None Game ------ Seed NuclearBombardmentFilter Manual? 0 Play Time 00:31:46 Cumulative 35.3 hours Start 2024.08.06 @ 02:41:44 End 2024.08.06 @ 03:19:59 Sessions 1 Manual Loads 0 Difficulty Rogue Special Mode None Game No. 52 Rogue 52 Adventurer 0 Explorer 0 Win Type - Total 0 Types 0/0/0/0/0/0/0/0/0 Lore% 19 Gallery% 28 Achievement% 23 Wizard Run 0 Options --------- Layout 1 ASCII 0 Keyboard 0 Movement Arrows Keybinds 0 Fullscreen 1 Font 16/SmallcapsGlow Map View 50x40 Zoom Use 0% Tactical HUD 1 Map Filters NONE Filters NONE Steam SD RUN: 39e12afc-c6ac-4f2b-b486-247e4c257091